[Event "Titled Tuesday Blitz September 20 Late 2022"]
[White "Abdrlauf, Elham"]
[Black "Romanchuk, Viktor"]
[WhiteFideId "1533533"]
[BlackFideId "14109271"]
[WhiteElo "2409"]
[BlackElo "2242"]
[Result "1-0"]
[Round "02"]
[TimeControl "180+1"]
[Date "2022.09.20"]
[WhiteClock "0:00:01"]
[BlackClock "0:00:06"]

1. e4 {[%clk 0:02:58]}  e6 {[%clk 0:02:59]} 2. d4 {[%clk 0:02:56]}  d5 {[%clk 0:02:59]} 3. Nd2 {[%clk 0:02:57]}  dxe4 {[%clk 0:02:58]} 4. Nxe4 {[%clk 0:02:58]}  Nd7 {[%clk 0:02:58]} 5. Nf3 {[%clk 0:02:58]}  Ngf6 {[%clk 0:02:58]} 6. Nxf6+ {[%clk 0:02:54]}  Nxf6 {[%clk 0:02:59]} 7. Be3 {[%clk 0:02:54]}  Nd5 {[%clk 0:02:55]} 8. Bd2 {[%clk 0:02:54]}  c5 {[%clk 0:02:52]} 9. Bb5+ {[%clk 0:02:45]}  Bd7 {[%clk 0:02:50]} 10. Qe2 {[%clk 0:02:46]}  cxd4 {[%clk 0:01:51]} 11. Ne5 {[%clk 0:02:42]}  Nf6 {[%clk 0:01:50]} 12. O-O-O {[%clk 0:02:21]}  a6 {[%clk 0:01:49]} 13. Nxd7 {[%clk 0:02:07]}  Nxd7 {[%clk 0:01:46]} 14. Bc4 {[%clk 0:01:53]}  Be7 {[%clk 0:01:34]} 15. Bf4 {[%clk 0:01:39]}  Qb6 {[%clk 0:01:27]} 16. Kb1 {[%clk 0:00:55]}  O-O {[%clk 0:01:17]} 17. c3 {[%clk 0:00:55]}  Bf6 {[%clk 0:01:06]} 18. g4 {[%clk 0:00:35]}  Rac8 {[%clk 0:00:44]} 19. g5 {[%clk 0:00:26]}  dxc3 {[%clk 0:00:40]} 20. b3 {[%clk 0:00:09]}  Be5 {[%clk 0:00:23]} 21. Be3 {[%clk 0:00:02]}  Qc7 {[%clk 0:00:16]} 22. Qc2 {[%clk 0:00:02]}  b5 {[%clk 0:00:15]} 23. Bd3 {[%clk 0:00:03]}  g6 {[%clk 0:00:13]} 24. h4 {[%clk 0:00:03]}  Nc5 {[%clk 0:00:13]} 25. Bxc5 {[%clk 0:00:04]}  Qxc5 {[%clk 0:00:12]} 26. h5 {[%clk 0:00:04]}  Kg7 {[%clk 0:00:09]} 27. hxg6 {[%clk 0:00:02]}  hxg6 {[%clk 0:00:08]} 28. Rh6 {[%clk 0:00:02]}  Rh8 {[%clk 0:00:08]} 29. Rdh1 {[%clk 0:00:02]}  Rxh6 {[%clk 0:00:07]} 30. gxh6+ {[%clk 0:00:02]}  Kh7 {[%clk 0:00:07]} 31. f4 {[%clk 0:00:03]}  Bf6 {[%clk 0:00:06]} 32. Be4 {[%clk 0:00:01]}  Qa3 {[%clk 0:00:06]} 33. Rd1 {[%clk 0:00:02]}  Rc7 {[%clk 0:00:05]} 34. Rh1 {[%clk 0:00:02]}  Qb2+ {[%clk 0:00:05]} 35. Qxb2 {[%clk 0:00:03]}  cxb2 {[%clk 0:00:06]} 36. Bc2 {[%clk 0:00:03]}  b4 {[%clk 0:00:06]} 37. Bd3 {[%clk 0:00:03]}  a5 {[%clk 0:00:06]} 38. Bc2 {[%clk 0:00:03]}  Rc3 {[%clk 0:00:06]} 39. Be4 {[%clk 0:00:02]}  Re3 {[%clk 0:00:05]} 40. Bc2 {[%clk 0:00:02]}  Rf3 {[%clk 0:00:05]} 41. Re1 {[%clk 0:00:02]}  Rxf4 {[%clk 0:00:05]} 42. a4 {[%clk 0:00:03]}  Bc3 {[%clk 0:00:04]} 43. Rd1 {[%clk 0:00:02]}  Kxh6 {[%clk 0:00:03]} 44. Ka2 {[%clk 0:00:02]}  Kg7 {[%clk 0:00:02]} 45. Bb1 {[%clk 0:00:03]}  Rd4 {[%clk 0:00:01]} 46. Rf1 {[%clk 0:00:03]}  Rd5 {[%clk 0:00:01]} 47. Be4 {[%clk 0:00:04]}  Re5 {[%clk 0:00:02]} 48. Bc2 {[%clk 0:00:04]}  f5 {[%clk 0:00:02]} 49. Rh1 {[%clk 0:00:05]}  Kf6 {[%clk 0:00:03]} 50. Bb1 {[%clk 0:00:06]}  Re1 {[%clk 0:00:03]} 51. Rh8 {[%clk 0:00:06]}  Re5 {[%clk 0:00:02]} 52. Rb8 {[%clk 0:00:06]}  g5 {[%clk 0:00:02]} 53. Rf8+ {[%clk 0:00:06]}  Ke7 {[%clk 0:00:01]} 54. Rb8 {[%clk 0:00:06]}  g4 {[%clk 0:00:01]} 55. Rg8 {[%clk 0:00:07]}  Kf6 {[%clk 0:00:01]} 56. Rh8 {[%clk 0:00:06]}  Kg5 {[%clk 0:00:01]} 57. Rh1 {[%clk 0:00:07]}  Kf4 {[%clk 0:00:02]} 58. Rf1+ {[%clk 0:00:07]}  Kg5 {[%clk 0:00:02]} 59. Bd3 {[%clk 0:00:04]}  f4 {[%clk 0:00:02]} 60. Rg1 {[%clk 0:00:04]}  f3 {[%clk 0:00:03]} 61. Ba6 {[%clk 0:00:04]}  Kf4 {[%clk 0:00:03]} 62. Bb7 {[%clk 0:00:04]}  Re1 {[%clk 0:00:04]} 63. Rxe1 {[%clk 0:00:01]}  Bxe1 {[%clk 0:00:05]} 64. Ba6 {[%clk 0:00:01]}  Bc3 {[%clk 0:00:06]} 65. Bd3 {[%clk 0:00:01]} 1-0


[Site "https://www.chess.com"]

[Event "Titled Tuesday Blitz September 20 Late 2022"]
[White "Barria Zuniga, Daniel"]
[Black "Svane, Rasmus"]
[WhiteFideId "3400816"]
[BlackFideId "4657101"]
[WhiteElo "2414"]
[BlackElo "2674"]
[Result "0-1"]
[Round "02"]
[TimeControl "180+1"]
[Date "2022.09.20"]
[WhiteClock "0:00:05"]
[BlackClock "0:00:16"]

1. d4 {[%clk 0:03:00]}  Nf6 {[%clk 0:02:58]} 2. c4 {[%clk 0:03:01]}  e6 {[%clk 0:02:59]} 3. Nf3 {[%clk 0:03:01]}  h6 {[%clk 0:02:58]} 4. g3 {[%clk 0:02:53]}  d5 {[%clk 0:02:57]} 5. Bg2 {[%clk 0:02:52]}  Bd6 {[%clk 0:02:57]} 6. O-O {[%clk 0:02:51]}  O-O {[%clk 0:02:57]} 7. Nc3 {[%clk 0:02:44]}  Nc6 {[%clk 0:02:56]} 8. b3 {[%clk 0:02:26]}  dxc4 {[%clk 0:02:54]} 9. bxc4 {[%clk 0:02:26]}  e5 {[%clk 0:02:55]} 10. e3 {[%clk 0:02:25]}  Re8 {[%clk 0:02:51]} 11. h3 {[%clk 0:01:51]}  exd4 {[%clk 0:02:37]} 12. exd4 {[%clk 0:01:50]}  Bf5 {[%clk 0:02:37]} 13. c5 {[%clk 0:01:37]}  Bf8 {[%clk 0:02:36]} 14. Be3 {[%clk 0:01:36]}  Ne4 {[%clk 0:02:22]} 15. Nxe4 {[%clk 0:01:10]}  Bxe4 {[%clk 0:02:23]} 16. Qa4 {[%clk 0:01:01]}  Qd5 {[%clk 0:02:21]} 17. Nh4 {[%clk 0:00:55]}  g5 {[%clk 0:02:02]} 18. Bxe4 {[%clk 0:00:51]}  Rxe4 {[%clk 0:01:52]} 19. Nf3 {[%clk 0:00:49]}  Rd8 {[%clk 0:01:44]} 20. Rad1 {[%clk 0:00:45]}  Bg7 {[%clk 0:01:21]} 21. Nd2 {[%clk 0:00:27]}  Re7 {[%clk 0:01:18]} 22. Nb3 {[%clk 0:00:24]}  h5 {[%clk 0:00:56]} 23. Qb5 {[%clk 0:00:19]}  h4 {[%clk 0:00:45]} 24. gxh4 {[%clk 0:00:16]}  Qf3 {[%clk 0:00:41]} 25. Kh2 {[%clk 0:00:13]}  Re4 {[%clk 0:00:34]} 26. Rg1 {[%clk 0:00:12]}  Be5+ {[%clk 0:00:22]} 27. dxe5 {[%clk 0:00:10]}  Rxd1 {[%clk 0:00:23]} 28. Rxd1 {[%clk 0:00:09]}  Qxd1 {[%clk 0:00:24]} 29. Qxb7 {[%clk 0:00:08]}  Qd5 {[%clk 0:00:18]} 30. Qc8+ {[%clk 0:00:06]}  Kg7 {[%clk 0:00:17]} 31. Bxg5 {[%clk 0:00:05]}  Nxe5 {[%clk 0:00:16]} 0-1


[Site "https://www.chess.com"]

[Event "Titled Tuesday Blitz September 20 Late 2022"]
[White "Czernek, Tymon"]
[Black "Rustemov, Alexander"]
[WhiteFideId "1199510"]
[BlackFideId "4119002"]
[WhiteElo "2007"]
[BlackElo "2843"]
[Result "0-1"]
[Round "02"]
[TimeControl "180+1"]
[Date "2022.09.20"]
[WhiteClock "0:00:59"]
[BlackClock "0:01:37"]

1. e4 {[%clk 0:03:00]}  e6 {[%clk 0:02:59]} 2. d4 {[%clk 0:03:00]}  d5 {[%clk 0:03:00]} 3. Nc3 {[%clk 0:03:01]}  dxe4 {[%clk 0:03:00]} 4. Nxe4 {[%clk 0:03:01]}  Bd7 {[%clk 0:03:01]} 5. Nf3 {[%clk 0:03:00]}  Bc6 {[%clk 0:03:01]} 6. Bd3 {[%clk 0:03:01]}  Nd7 {[%clk 0:03:02]} 7. O-O {[%clk 0:03:01]}  Ngf6 {[%clk 0:03:02]} 8. Nxf6+ {[%clk 0:02:57]}  Qxf6 {[%clk 0:03:02]} 9. c3 {[%clk 0:02:40]}  Bxf3 {[%clk 0:03:02]} 10. Qxf3 {[%clk 0:02:39]}  Qxf3 {[%clk 0:03:02]} 11. gxf3 {[%clk 0:02:40]}  Be7 {[%clk 0:02:59]} 12. Bf4 {[%clk 0:02:39]}  c6 {[%clk 0:02:58]} 13. Rfe1 {[%clk 0:02:37]}  Nf6 {[%clk 0:02:57]} 14. Rad1 {[%clk 0:02:36]}  Rd8 {[%clk 0:02:56]} 15. a3 {[%clk 0:02:34]}  O-O {[%clk 0:02:55]} 16. Bc2 {[%clk 0:02:34]}  Nd5 {[%clk 0:02:54]} 17. Bg3 {[%clk 0:02:34]}  Bd6 {[%clk 0:02:50]} 18. Bxd6 {[%clk 0:02:27]}  Rxd6 {[%clk 0:02:49]} 19. Kg2 {[%clk 0:02:25]}  Rfd8 {[%clk 0:02:37]} 20. Kg3 {[%clk 0:02:25]}  g6 {[%clk 0:02:34]} 21. f4 {[%clk 0:02:24]}  Kg7 {[%clk 0:02:33]} 22. h4 {[%clk 0:02:23]}  h5 {[%clk 0:02:30]} 23. Re5 {[%clk 0:02:22]}  Kf6 {[%clk 0:02:21]} 24. Kf3 {[%clk 0:02:21]}  b6 {[%clk 0:02:17]} 25. Bb3 {[%clk 0:01:52]}  Ne7 {[%clk 0:02:14]} 26. Rh1 {[%clk 0:01:47]}  c5 {[%clk 0:01:51]} 27. dxc5 {[%clk 0:01:45]}  Rd2 {[%clk 0:01:51]} 28. cxb6 {[%clk 0:01:33]}  Rxb2 {[%clk 0:01:50]} 29. Bc4 {[%clk 0:01:33]}  Rxb6 {[%clk 0:01:41]} 30. Rhe1 {[%clk 0:01:25]}  Rc8 {[%clk 0:01:38]} 31. R1e4 {[%clk 0:01:08]}  Rbc6 {[%clk 0:01:38]} 32. Be2 {[%clk 0:01:04]}  Rxc3+ {[%clk 0:01:37]} 33. Re3 {[%clk 0:01:04]}  Nf5 {[%clk 0:01:36]} 34. Rxc3 {[%clk 0:01:01]}  Rxc3+ {[%clk 0:01:37]} 35. Kg2 {[%clk 0:01:01]}  Nxh4+ {[%clk 0:01:36]} 36. Kg1 {[%clk 0:00:59]}  Rxa3 {[%clk 0:01:37]} 0-1


[Site "https://www.chess.com"]

[Event "Titled Tuesday Blitz September 20 Late 2022"]
[White "Fernandez De La Vara, Arnaldo"]
[Black "Jobava, Baadur"]
[WhiteFideId "3518388"]
[BlackFideId "13601520"]
[WhiteElo "2387"]
[BlackElo "2582"]
[Result "0-1"]
[Round "02"]
[TimeControl "180+1"]
[Date "2022.09.20"]
[WhiteClock "0:00:01"]
[BlackClock "0:00:39"]

1. Nf3 {[%clk 0:03:00]}  d5 {[%clk 0:02:59]} 2. b3 {[%clk 0:03:01]}  Bg4 {[%clk 0:02:58]} 3. Bb2 {[%clk 0:03:02]}  Bxf3 {[%clk 0:02:58]} 4. exf3 {[%clk 0:03:03]}  c5 {[%clk 0:02:57]} 5. g3 {[%clk 0:03:03]}  Nc6 {[%clk 0:02:57]} 6. f4 {[%clk 0:03:00]}  e6 {[%clk 0:02:57]} 7. Bg2 {[%clk 0:03:01]}  Nf6 {[%clk 0:02:57]} 8. O-O {[%clk 0:03:01]}  Be7 {[%clk 0:02:57]} 9. d3 {[%clk 0:03:01]}  O-O {[%clk 0:02:57]} 10. Nd2 {[%clk 0:03:02]}  Nd7 {[%clk 0:02:53]} 11. f5 {[%clk 0:02:47]}  Bf6 {[%clk 0:02:53]} 12. Qc1 {[%clk 0:02:38]}  Bxb2 {[%clk 0:02:39]} 13. Qxb2 {[%clk 0:02:39]}  Qf6 {[%clk 0:02:38]} 14. Qxf6 {[%clk 0:02:38]}  Nxf6 {[%clk 0:02:39]} 15. fxe6 {[%clk 0:02:36]}  fxe6 {[%clk 0:02:39]} 16. Rfe1 {[%clk 0:02:29]}  Rfe8 {[%clk 0:02:39]} 17. f4 {[%clk 0:02:17]}  e5 {[%clk 0:02:38]} 18. fxe5 {[%clk 0:02:16]}  Nxe5 {[%clk 0:02:39]} 19. h3 {[%clk 0:02:06]}  Kf7 {[%clk 0:02:33]} 20. Nf3 {[%clk 0:01:38]}  Nc6 {[%clk 0:02:33]} 21. Ng5+ {[%clk 0:01:38]}  Kg6 {[%clk 0:02:31]} 22. Ne6 {[%clk 0:01:38]}  Nb4 {[%clk 0:02:21]} 23. Re2 {[%clk 0:01:19]}  Kf7 {[%clk 0:02:09]} 24. Ng5+ {[%clk 0:01:17]}  Kg8 {[%clk 0:02:07]} 25. Rae1 {[%clk 0:01:13]}  Rxe2 {[%clk 0:02:02]} 26. Rxe2 {[%clk 0:01:13]}  h6 {[%clk 0:02:01]} 27. Ne6 {[%clk 0:01:09]}  Re8 {[%clk 0:02:00]} 28. a3 {[%clk 0:01:10]}  Nc6 {[%clk 0:01:48]} 29. Kf2 {[%clk 0:01:04]}  b6 {[%clk 0:01:39]} 30. c4 {[%clk 0:00:54]}  Kf7 {[%clk 0:00:54]} 31. Bxd5 {[%clk 0:00:35]}  Nxd5 {[%clk 0:00:54]} 32. cxd5 {[%clk 0:00:36]}  Ne7 {[%clk 0:00:54]} 33. Nf4 {[%clk 0:00:06]}  Rd8 {[%clk 0:00:54]} 34. Re5 {[%clk 0:00:02]}  g5 {[%clk 0:00:52]} 35. Nh5 {[%clk 0:00:01]}  Nxd5 {[%clk 0:00:50]} 36. g4 {[%clk 0:00:01]}  Ne7 {[%clk 0:00:49]} 37. Ke3 {[%clk 0:00:01]}  a5 {[%clk 0:00:43]} 38. a4 {[%clk 0:00:01]}  Nd5+ {[%clk 0:00:39]} 39. Ke4 {[%clk 0:00:01]}  Nc3+ {[%clk 0:00:39]} 0-1


[Site "https://www.chess.com"]

[Event "Titled Tuesday Blitz September 20 Late 2022"]
[White "Gascon Del Nogal, Jose Rafael"]
[Black "Terry, Renato"]
[WhiteFideId "3902463"]
[BlackFideId "3803457"]
[WhiteElo "2473"]
[BlackElo "2577"]
[Result "0-1"]
[Round "02"]
[TimeControl "180+1"]
[Date "2022.09.20"]
[WhiteClock "0:00:01"]
[BlackClock "0:00:29"]

1. Nf3 {[%clk 0:03:00]}  Nf6 {[%clk 0:02:59]} 2. c4 {[%clk 0:03:00]}  b6 {[%clk 0:02:59]} 3. g3 {[%clk 0:02:59]}  Bb7 {[%clk 0:03:00]} 4. Bg2 {[%clk 0:03:00]}  g6 {[%clk 0:03:00]} 5. O-O {[%clk 0:03:00]}  Bg7 {[%clk 0:03:00]} 6. d4 {[%clk 0:03:00]}  e6 {[%clk 0:03:00]} 7. Qc2 {[%clk 0:02:59]}  O-O {[%clk 0:02:58]} 8. Nc3 {[%clk 0:02:59]}  d5 {[%clk 0:02:58]} 9. cxd5 {[%clk 0:02:59]}  exd5 {[%clk 0:02:58]} 10. Ne5 {[%clk 0:02:54]}  c6 {[%clk 0:02:56]} 11. b4 {[%clk 0:02:51]}  Nbd7 {[%clk 0:02:51]} 12. Bf4 {[%clk 0:02:50]}  Nh5 {[%clk 0:02:47]} 13. b5 {[%clk 0:02:43]}  cxb5 {[%clk 0:02:08]} 14. Nxd5 {[%clk 0:02:02]}  Nxe5 {[%clk 0:01:47]} 15. dxe5 {[%clk 0:02:01]}  Bxd5 {[%clk 0:01:46]} 16. Rfd1 {[%clk 0:01:59]}  Rc8 {[%clk 0:01:47]} 17. Qb2 {[%clk 0:01:46]}  Nxf4 {[%clk 0:01:46]} 18. gxf4 {[%clk 0:01:46]}  Qh4 {[%clk 0:01:47]} 19. Rxd5 {[%clk 0:01:41]}  Qxf4 {[%clk 0:01:47]} 20. e3 {[%clk 0:01:39]}  Qc4 {[%clk 0:01:39]} 21. Rad1 {[%clk 0:01:37]}  Rc5 {[%clk 0:01:35]} 22. Rxc5 {[%clk 0:01:04]}  bxc5 {[%clk 0:01:13]} 23. f4 {[%clk 0:01:02]}  Qa4 {[%clk 0:01:06]} 24. Rd7 {[%clk 0:00:49]}  c4 {[%clk 0:01:05]} 25. Bd5 {[%clk 0:00:28]}  Qd1+ {[%clk 0:01:04]} 26. Kf2 {[%clk 0:00:23]}  Qh5 {[%clk 0:01:01]} 27. Qxb5 {[%clk 0:00:16]}  Qxh2+ {[%clk 0:01:01]} 28. Bg2 {[%clk 0:00:16]}  g5 {[%clk 0:00:48]} 29. Qxc4 {[%clk 0:00:15]}  Qh4+ {[%clk 0:00:49]} 30. Kf1 {[%clk 0:00:13]}  Bxe5 {[%clk 0:00:47]} 31. Bd5 {[%clk 0:00:10]}  gxf4 {[%clk 0:00:43]} 32. exf4 {[%clk 0:00:09]}  Bxf4 {[%clk 0:00:38]} 33. Bxf7+ {[%clk 0:00:07]}  Kg7 {[%clk 0:00:34]} 34. Bd5+ {[%clk 0:00:06]}  Kh6 {[%clk 0:00:32]} 35. Ke2 {[%clk 0:00:02]}  Qh2+ {[%clk 0:00:28]} 36. Kd3 {[%clk 0:00:01]}  Qd2+ {[%clk 0:00:29]} 37. Ke4 {[%clk 0:00:01]}  Qe3# {[%clk 0:00:29]} 0-1


[Site "https://www.chess.com"]

[Event "Titled Tuesday Blitz September 20 Late 2022"]
[White "Goroshkov, Maksym"]
[Black "Maksimovic, Bojan"]
[WhiteFideId "14142716"]
[BlackFideId "14408120"]
[WhiteElo "2257"]
[BlackElo "2447"]
[Result "0-1"]
[Round "02"]
[TimeControl "180+1"]
[Date "2022.09.20"]
[WhiteClock "0:00:08"]
[BlackClock "0:00:07"]

1. e4 {[%clk 0:02:55]}  c5 {[%clk 0:02:59]} 2. c3 {[%clk 0:02:54]}  d6 {[%clk 0:02:58]} 3. d4 {[%clk 0:02:54]}  Qc7 {[%clk 0:02:59]} 4. Nf3 {[%clk 0:02:53]}  Nf6 {[%clk 0:02:59]} 5. Bd3 {[%clk 0:02:53]}  Nc6 {[%clk 0:02:59]} 6. O-O {[%clk 0:02:52]}  Bg4 {[%clk 0:02:58]} 7. Be3 {[%clk 0:02:51]}  cxd4 {[%clk 0:02:53]} 8. cxd4 {[%clk 0:02:52]}  e5 {[%clk 0:02:47]} 9. d5 {[%clk 0:02:48]}  Nd4 {[%clk 0:02:38]} 10. Bxd4 {[%clk 0:02:47]}  exd4 {[%clk 0:02:38]} 11. Bb5+ {[%clk 0:02:47]}  Nd7 {[%clk 0:02:35]} 12. Qxd4 {[%clk 0:02:45]}  Bxf3 {[%clk 0:02:26]} 13. gxf3 {[%clk 0:02:46]}  a6 {[%clk 0:02:26]} 14. Bxd7+ {[%clk 0:02:43]}  Qxd7 {[%clk 0:02:27]} 15. Nc3 {[%clk 0:02:42]}  Be7 {[%clk 0:02:26]} 16. f4 {[%clk 0:02:39]}  O-O {[%clk 0:02:23]} 17. Qe3 {[%clk 0:02:38]}  Bf6 {[%clk 0:02:12]} 18. Rac1 {[%clk 0:02:37]}  Rfe8 {[%clk 0:02:11]} 19. Rfe1 {[%clk 0:02:33]}  Rac8 {[%clk 0:02:09]} 20. Qg3 {[%clk 0:02:31]}  Rc4 {[%clk 0:02:00]} 21. b3 {[%clk 0:02:20]}  Rb4 {[%clk 0:01:27]} 22. e5 {[%clk 0:02:03]}  dxe5 {[%clk 0:01:19]} 23. Ne4 {[%clk 0:02:00]}  Kh8 {[%clk 0:01:11]} 24. Nc5 {[%clk 0:01:30]}  Qxd5 {[%clk 0:01:10]} 25. Nd3 {[%clk 0:01:26]}  Rd4 {[%clk 0:00:49]} 26. Nxe5 {[%clk 0:01:26]}  Bxe5 {[%clk 0:00:27]} 27. Rxe5 {[%clk 0:01:24]}  Rd1+ {[%clk 0:00:27]} 28. Rxd1 {[%clk 0:01:25]}  Qxd1+ {[%clk 0:00:28]} 29. Kg2 {[%clk 0:01:25]}  Rd8 {[%clk 0:00:25]} 30. Re7 {[%clk 0:01:10]}  g6 {[%clk 0:00:06]} 31. Rxb7 {[%clk 0:01:04]}  Qd5+ {[%clk 0:00:06]} 32. Qf3 {[%clk 0:01:04]}  Qf5 {[%clk 0:00:07]} 33. Re7 {[%clk 0:00:49]}  Rd4 {[%clk 0:00:05]} 34. Re5 {[%clk 0:00:32]}  Qxf4 {[%clk 0:00:03]} 35. Qxf4 {[%clk 0:00:32]}  Rxf4 {[%clk 0:00:03]} 36. Ra5 {[%clk 0:00:31]}  Rf6 {[%clk 0:00:04]} 37. Rc5 {[%clk 0:00:26]}  Kg7 {[%clk 0:00:04]} 38. Rc7 {[%clk 0:00:25]}  Rd6 {[%clk 0:00:05]} 39. Ra7 {[%clk 0:00:24]}  Kf6 {[%clk 0:00:05]} 40. b4 {[%clk 0:00:22]}  h5 {[%clk 0:00:05]} 41. a4 {[%clk 0:00:22]}  Ke6 {[%clk 0:00:06]} 42. h4 {[%clk 0:00:18]}  f6 {[%clk 0:00:06]} 43. b5 {[%clk 0:00:17]}  axb5 {[%clk 0:00:06]} 44. axb5 {[%clk 0:00:18]}  Rd4 {[%clk 0:00:05]} 45. Rb7 {[%clk 0:00:15]}  Rxh4 {[%clk 0:00:04]} 46. Rb6+ {[%clk 0:00:15]}  Kf5 {[%clk 0:00:05]} 47. Rb7 {[%clk 0:00:14]}  Rb4 {[%clk 0:00:05]} 48. Rb6 {[%clk 0:00:13]}  g5 {[%clk 0:00:05]} 49. Rb7 {[%clk 0:00:11]}  h4 {[%clk 0:00:06]} 50. Rb8 {[%clk 0:00:10]}  Kg4 {[%clk 0:00:06]} 51. b6 {[%clk 0:00:10]}  h3+ {[%clk 0:00:05]} 52. Kh2 {[%clk 0:00:10]}  Rb2 {[%clk 0:00:05]} 53. Kg1 {[%clk 0:00:07]}  h2+ {[%clk 0:00:06]} 54. Kxh2 {[%clk 0:00:05]}  Rxf2+ {[%clk 0:00:06]} 55. Kg1 {[%clk 0:00:06]}  Rb2 {[%clk 0:00:07]} 56. b7 {[%clk 0:00:06]}  f5 {[%clk 0:00:07]} 57. Kf1 {[%clk 0:00:06]}  f4 {[%clk 0:00:08]} 58. Kg1 {[%clk 0:00:06]}  f3 {[%clk 0:00:08]} 59. Kf1 {[%clk 0:00:05]}  Kg3 {[%clk 0:00:09]} 60. Ke1 {[%clk 0:00:05]}  Rb1+ {[%clk 0:00:09]} 61. Kd2 {[%clk 0:00:05]}  f2 {[%clk 0:00:10]} 62. Rg8 {[%clk 0:00:04]}  f1=Q {[%clk 0:00:08]} 63. Rxg5+ {[%clk 0:00:05]}  Kh4 {[%clk 0:00:08]} 64. Rc5 {[%clk 0:00:03]}  Qd1+ {[%clk 0:00:08]} 65. Kc3 {[%clk 0:00:03]}  Rxb7 {[%clk 0:00:06]} 66. Kc4 {[%clk 0:00:04]}  Qc2+ {[%clk 0:00:06]} 67. Kd4 {[%clk 0:00:05]}  Rd7+ {[%clk 0:00:05]} 68. Rd5 {[%clk 0:00:06]}  Qd2+ {[%clk 0:00:05]} 69. Kc5 {[%clk 0:00:06]}  Qxd5+ {[%clk 0:00:06]} 70. Kb6 {[%clk 0:00:07]}  Rb7+ {[%clk 0:00:06]} 71. Ka6 {[%clk 0:00:08]}  Qb5# {[%clk 0:00:07]} 0-1


[Site "https://www.chess.com"]

[Event "Titled Tuesday Blitz September 20 Late 2022"]
[White "Guz, Ari"]
[Black "Bortnyk, Olexandr"]
[WhiteFideId "2825759"]
[BlackFideId "14120828"]
[WhiteElo "1913"]
[BlackElo "2723"]
[Result "0-1"]
[Round "02"]
[TimeControl "180+1"]
[Date "2022.09.20"]
[WhiteClock "0:00:22"]
[BlackClock "0:00:43"]

1. e4 {[%clk 0:03:00]}  d6 {[%clk 0:02:59]} 2. d4 {[%clk 0:03:00]}  Nf6 {[%clk 0:03:00]} 3. Nc3 {[%clk 0:03:00]}  Nbd7 {[%clk 0:03:01]} 4. f4 {[%clk 0:03:01]}  e5 {[%clk 0:03:01]} 5. Nf3 {[%clk 0:03:01]}  exd4 {[%clk 0:03:02]} 6. Qxd4 {[%clk 0:03:01]}  c6 {[%clk 0:03:01]} 7. Be3 {[%clk 0:03:00]}  d5 {[%clk 0:03:02]} 8. e5 {[%clk 0:03:00]}  Bc5 {[%clk 0:03:02]} 9. Qd2 {[%clk 0:03:00]}  Bxe3 {[%clk 0:03:00]} 10. Qxe3 {[%clk 0:03:01]}  Ng4 {[%clk 0:03:01]} 11. Qd2 {[%clk 0:02:59]}  Qb6 {[%clk 0:02:59]} 12. O-O-O {[%clk 0:02:26]}  h5 {[%clk 0:02:48]} 13. h3 {[%clk 0:02:13]}  Nh6 {[%clk 0:02:48]} 14. g4 {[%clk 0:02:06]}  Nc5 {[%clk 0:02:46]} 15. f5 {[%clk 0:02:05]}  Bd7 {[%clk 0:02:40]} 16. Qf4 {[%clk 0:01:21]}  O-O-O {[%clk 0:02:38]} 17. Bg2 {[%clk 0:01:21]}  Rde8 {[%clk 0:01:53]} 18. Nd4 {[%clk 0:01:18]}  g6 {[%clk 0:01:51]} 19. f6 {[%clk 0:00:48]}  Ne6 {[%clk 0:01:28]} 20. Nxe6 {[%clk 0:00:47]}  Bxe6 {[%clk 0:01:29]} 21. Bf3 {[%clk 0:00:46]}  Reg8 {[%clk 0:01:13]} 22. g5 {[%clk 0:00:34]}  Nf5 {[%clk 0:01:13]} 23. h4 {[%clk 0:00:34]}  Rd8 {[%clk 0:01:01]} 24. Rd2 {[%clk 0:00:31]}  Rhe8 {[%clk 0:00:47]} 25. Na4 {[%clk 0:00:32]}  Qa5 {[%clk 0:00:46]} 26. Rhd1 {[%clk 0:00:26]}  d4 {[%clk 0:00:46]} 27. b3 {[%clk 0:00:27]}  Bd5 {[%clk 0:00:43]} 28. Bxd5 {[%clk 0:00:27]}  Rxd5 {[%clk 0:00:44]} 29. Nb2 {[%clk 0:00:23]}  Qxa2 {[%clk 0:00:44]} 30. Re2 {[%clk 0:00:22]}  Qa1+ {[%clk 0:00:43]} 0-1


[Site "https://www.chess.com"]

[Event "Titled Tuesday Blitz September 20 Late 2022"]
[White "Hansen, Eric"]
[Black "Martinovici, Ilia"]
[WhiteFideId "2606771"]
[BlackFideId "13907034"]
[WhiteElo "2568"]
[BlackElo "2282"]
[Result "1-0"]
[Round "02"]
[TimeControl "180+1"]
[Date "2022.09.20"]
[WhiteClock "0:00:42"]
[BlackClock "0:00:14"]

1. e4 {[%clk 0:02:17]}  c5 {[%clk 0:02:59]} 2. Nf3 {[%clk 0:02:12]}  e6 {[%clk 0:02:59]} 3. d4 {[%clk 0:02:12]}  cxd4 {[%clk 0:03:00]} 4. Nxd4 {[%clk 0:02:13]}  a6 {[%clk 0:02:59]} 5. Bd3 {[%clk 0:02:08]}  Qc7 {[%clk 0:02:59]} 6. O-O {[%clk 0:02:05]}  Nf6 {[%clk 0:02:58]} 7. Re1 {[%clk 0:02:04]}  Bd6 {[%clk 0:02:46]} 8. h3 {[%clk 0:01:57]}  Nc6 {[%clk 0:02:39]} 9. Nxc6 {[%clk 0:01:54]}  dxc6 {[%clk 0:02:40]} 10. Nd2 {[%clk 0:01:54]}  b5 {[%clk 0:02:38]} 11. a4 {[%clk 0:01:54]}  Bb7 {[%clk 0:02:36]} 12. c4 {[%clk 0:01:31]}  b4 {[%clk 0:02:24]} 13. c5 {[%clk 0:01:31]}  Bxc5 {[%clk 0:02:23]} 14. e5 {[%clk 0:01:31]}  Nd5 {[%clk 0:02:04]} 15. Ne4 {[%clk 0:01:29]}  Be7 {[%clk 0:02:03]} 16. Nd6+ {[%clk 0:01:11]}  Bxd6 {[%clk 0:02:00]} 17. exd6 {[%clk 0:01:12]}  Qxd6 {[%clk 0:02:01]} 18. Qg4 {[%clk 0:01:12]}  O-O-O {[%clk 0:01:49]} 19. Qxg7 {[%clk 0:01:05]}  f5 {[%clk 0:01:13]} 20. Qh6 {[%clk 0:01:00]}  Rhe8 {[%clk 0:00:44]} 21. Bxf5 {[%clk 0:00:56]}  Kb8 {[%clk 0:00:24]} 22. Bg5 {[%clk 0:00:52]}  Rd7 {[%clk 0:00:18]} 23. Bxe6 {[%clk 0:00:48]}  Rc7 {[%clk 0:00:15]} 24. Bxd5 {[%clk 0:00:48]}  Rxe1+ {[%clk 0:00:15]} 25. Rxe1 {[%clk 0:00:47]}  Qxd5 {[%clk 0:00:14]} 26. Bf4 {[%clk 0:00:46]}  c5 {[%clk 0:00:15]} 27. Qg7 {[%clk 0:00:43]}  Ka8 {[%clk 0:00:14]} 28. Bxc7 {[%clk 0:00:42]} 1-0


[Site "https://www.chess.com"]